[Event "*** SCC Grand Prix: Titled Tuesday Blitz"]
[Site "Chess.com"]
[Date "2020.06.23"]
[Round "3"]
[White "peixe64"]
[Black "K-Nygren"]
[Result "1-0"]
[WhiteElo "2364"]
[BlackElo "2519"]
[TimeControl "180+1"]
[EndTime "10:29:10 PDT"]
[Termination "peixe64 won on time"]

1. d4 {[%clk 0:03:00.9]} 1... Nf6 {[%clk 0:02:59.5]} 2. c4 {[%clk 0:03:00.8]}
2... g6 {[%clk 0:02:59.3]} 3. Nc3 {[%clk 0:02:59.3]} 3... Bg7 {[%clk 0:02:59.2]}
4. e4 {[%clk 0:02:59.3]} 4... d6 {[%clk 0:02:59.1]} 5. h3 {[%clk 0:02:59.3]}
5... O-O {[%clk 0:02:58.3]} 6. Bg5 {[%clk 0:02:59.7]} 6... c5 {[%clk 0:02:56.2]}
7. d5 {[%clk 0:02:59.6]} 7... b5 {[%clk 0:02:54]} 8. cxb5 {[%clk 0:02:58.4]}
8... a6 {[%clk 0:02:54.1]} 9. bxa6 {[%clk 0:02:55.7]} 9... Qb6 {[%clk
0:02:53.5]} 10. Qc2 {[%clk 0:02:47.7]} 10... Nxa6 {[%clk 0:02:49.7]} 11. Nf3
{[%clk 0:02:37.8]} 11... Nb4 {[%clk 0:02:47.9]} 12. Qd2 {[%clk 0:02:37.7]} 12...
e6 {[%clk 0:02:27.6]} 13. dxe6 {[%clk 0:02:23.3]} 13... Bxe6 {[%clk 0:02:26.5]}
14. a3 {[%clk 0:02:02.2]} 14... d5 {[%clk 0:02:19.6]} 15. e5 {[%clk 0:01:50.1]}
15... Ne4 {[%clk 0:02:10.2]} 16. Qc1 {[%clk 0:01:32.9]} 16... Nxg5 {[%clk
0:01:34.1]} 17. Nxg5 {[%clk 0:01:29.4]} 17... Bxe5 {[%clk 0:01:23.2]} 18. axb4
{[%clk 0:01:11.1]} 18... Rxa1 {[%clk 0:01:21.8]} 19. Qxa1 {[%clk 0:01:09]} 19...
cxb4 {[%clk 0:01:20.9]} 20. Nd1 {[%clk 0:00:58.9]} 20... Bf5 {[%clk 0:00:58.3]}
21. Be2 {[%clk 0:00:44]} 21... Re8 {[%clk 0:00:57.5]} 22. Qa4 {[%clk 0:00:21]}
22... Re7 {[%clk 0:00:38.8]} 23. Qa8+ {[%clk 0:00:21]} 23... Kg7 {[%clk
0:00:37.7]} 24. Qxd5 {[%clk 0:00:20.4]} 24... Bf6 {[%clk 0:00:20.5]} 25. Nf3
{[%clk 0:00:20.5]} 25... Be4 {[%clk 0:00:20.1]} 26. Qc4 {[%clk 0:00:16.5]} 26...
Bxf3 {[%clk 0:00:14.6]} 27. gxf3 {[%clk 0:00:17.4]} 27... b3 {[%clk 0:00:10.6]}
28. Kf1 {[%clk 0:00:17.6]} 28... Qd6 {[%clk 0:00:08.8]} 29. Ne3 {[%clk
0:00:16.9]} 29... h5 {[%clk 0:00:07.2]} 30. Qxb3 {[%clk 0:00:16.4]} 30... Qd2
{[%clk 0:00:06.3]} 31. Qd3 {[%clk 0:00:13.8]} 31... Qc1+ {[%clk 0:00:05.8]} 32.
Kg2 {[%clk 0:00:13.9]} 32... Qxb2 {[%clk 0:00:06.3]} 33. Rb1 {[%clk 0:00:13.9]}
33... Qe5 {[%clk 0:00:06]} 34. Rb5 {[%clk 0:00:13.2]} 34... Qf4 {[%clk
0:00:05.7]} 35. Nd5 {[%clk 0:00:12]} 35... Qg5+ {[%clk 0:00:04.2]} 36. Kf1
{[%clk 0:00:12]} 1-0

[Event "*** SCC Grand Prix: Titled Tuesday Blitz"]
[Site "Chess.com"]
[Date "2020.06.23"]
[Round "3"]
[White "rududuyk"]
[Black "Sueetin"]
[Result "0-1"]
[WhiteElo "2160"]
[BlackElo "2351"]
[TimeControl "180+1"]
[EndTime "10:29:10 PDT"]
[Termination "Sueetin won by checkmate"]

1. e4 {[%clk 0:03:00.9]} 1... c6 {[%clk 0:02:58.9]} 2. d4 {[%clk 0:03:00.2]}
2... g6 {[%clk 0:02:58.8]} 3. Nc3 {[%clk 0:02:50.4]} 3... Bg7 {[%clk 0:02:58.9]}
4. Bc4 {[%clk 0:02:38.5]} 4... d6 {[%clk 0:02:56.4]} 5. Nf3 {[%clk 0:02:37.2]}
5... e6 {[%clk 0:02:51.1]} 6. Be3 {[%clk 0:02:28.4]} 6... d5 {[%clk 0:02:38.5]}
7. Bd3 {[%clk 0:02:20.5]} 7... dxe4 {[%clk 0:02:29.2]} 8. Nxe4 {[%clk
0:02:16.8]} 8... Nf6 {[%clk 0:02:28.5]} 9. Qd2 {[%clk 0:02:08.5]} 9... Nxe4
{[%clk 0:02:19.8]} 10. Bxe4 {[%clk 0:02:08.2]} 10... Nd7 {[%clk 0:02:18.5]} 11.
Bh6 {[%clk 0:02:04.1]} 11... Bxh6 {[%clk 0:02:13.2]} 12. Qxh6 {[%clk 0:02:03.3]}
12... Nf6 {[%clk 0:01:36.5]} 13. Bd3 {[%clk 0:02:01.3]} 13... Ng4 {[%clk
0:01:18.2]} 14. Qf4 {[%clk 0:01:53]} 14... h5 {[%clk 0:01:14.1]} 15. h3 {[%clk
0:01:46.6]} 15... Qf6 {[%clk 0:01:13.7]} 16. Qc7 {[%clk 0:01:31.9]} 16... Nh6
{[%clk 0:01:10.7]} 17. O-O-O {[%clk 0:01:24.2]} 17... O-O {[%clk 0:00:53.4]} 18.
Kb1 {[%clk 0:01:16.9]} 18... a5 {[%clk 0:00:40.2]} 19. Ne5 {[%clk 0:01:12.2]}
19... Qd8 {[%clk 0:00:31.3]} 20. Qxd8 {[%clk 0:00:55.9]} 20... Rxd8 {[%clk
0:00:32.2]} 21. c3 {[%clk 0:00:53.2]} 21... h4 {[%clk 0:00:21.7]} 22. g4 {[%clk
0:00:50.2]} 22... hxg3 {[%clk 0:00:21.3]} 23. fxg3 {[%clk 0:00:49.7]} 23... Kg7
{[%clk 0:00:16.3]} 24. Rdf1 {[%clk 0:00:49]} 24... Bd7 {[%clk 0:00:13.3]} 25.
Rf2 {[%clk 0:00:47.3]} 25... Be8 {[%clk 0:00:12.7]} 26. Rhf1 {[%clk 0:00:47.6]}
26... Rac8 {[%clk 0:00:10.8]} 27. g4 {[%clk 0:00:28.9]} 27... c5 {[%clk
0:00:10.9]} 28. Rf4 {[%clk 0:00:20.7]} 28... cxd4 {[%clk 0:00:10.2]} 29. cxd4
{[%clk 0:00:21.6]} 29... Rc7 {[%clk 0:00:10.5]} 30. h4 {[%clk 0:00:18.5]} 30...
f6 {[%clk 0:00:10.1]} 31. Nf3 {[%clk 0:00:17.1]} 31... e5 {[%clk 0:00:07.5]} 32.
Re4 {[%clk 0:00:12.6]} 32... exd4 {[%clk 0:00:07.3]} 33. Nxd4 {[%clk 0:00:11.5]}
33... Bf7 {[%clk 0:00:07.7]} 34. g5 {[%clk 0:00:09.9]} 34... fxg5 {[%clk
0:00:06.5]} 35. hxg5 {[%clk 0:00:09.5]} 35... Nf5 {[%clk 0:00:06.6]} 36. Rxf5
{[%clk 0:00:05.3]} 36... gxf5 {[%clk 0:00:07.5]} 37. Nxf5+ {[%clk 0:00:05.6]}
37... Kf8 {[%clk 0:00:06.2]} 38. Bc2 {[%clk 0:00:04.3]} 38... Bg6 {[%clk
0:00:05.8]} 39. Rf4 {[%clk 0:00:03.9]} 39... Kg8 {[%clk 0:00:04.4]} 40. Nh6+
{[%clk 0:00:03.4]} 40... Kg7 {[%clk 0:00:03.9]} 41. Ng4 {[%clk 0:00:02.9]} 41...
Rd1# {[%clk 0:00:02.6]} 0-1

[Event "*** SCC Grand Prix: Titled Tuesday Blitz"]
[Site "Chess.com"]
[Date "2020.06.23"]
[Round "3"]
[White "Durarbayli"]
[Black "GoltsevDmitry2000"]
[Result "1-0"]
[WhiteElo "2843"]
[BlackElo "2628"]
[TimeControl "180+1"]
[EndTime "10:29:11 PDT"]
[Termination "Durarbayli won by checkmate"]

1. e4 {[%clk 0:03:00.9]} 1... c5 {[%clk 0:02:59.9]} 2. b3 {[%clk 0:03:00.7]}
2... e6 {[%clk 0:03:00.2]} 3. Nf3 {[%clk 0:02:59.3]} 3... Nc6 {[%clk 0:03:00.7]}
4. Bb2 {[%clk 0:02:56.5]} 4... a6 {[%clk 0:02:59.5]} 5. c4 {[%clk 0:02:50.5]}
5... d5 {[%clk 0:02:52.5]} 6. cxd5 {[%clk 0:02:46.9]} 6... exd5 {[%clk
0:02:53.4]} 7. exd5 {[%clk 0:02:47.8]} 7... Qxd5 {[%clk 0:02:53.1]} 8. Bc4
{[%clk 0:02:27.6]} 8... Qe4+ {[%clk 0:02:44.7]} 9. Qe2 {[%clk 0:02:21.3]} 9...
Qxe2+ {[%clk 0:02:40.9]} 10. Kxe2 {[%clk 0:02:21.5]} 10... Nf6 {[%clk
0:02:38.1]} 11. Re1 {[%clk 0:02:19]} 11... Be7 {[%clk 0:02:30.9]} 12. d4 {[%clk
0:01:45.8]} 12... b5 {[%clk 0:02:24]} 13. Bd3 {[%clk 0:01:37.7]} 13... O-O
{[%clk 0:02:10.2]} 14. Nbd2 {[%clk 0:01:27.8]} 14... Nd5 {[%clk 0:01:52.9]} 15.
Be4 {[%clk 0:01:12.7]} 15... Be6 {[%clk 0:01:52.9]} 16. dxc5 {[%clk 0:01:05.1]}
16... Rfd8 {[%clk 0:01:25.2]} 17. Rac1 {[%clk 0:00:47.1]} 17... f5 {[%clk
0:01:18.6]} 18. Bb1 {[%clk 0:00:44.6]} 18... Kf7 {[%clk 0:01:01.8]} 19. Kf1
{[%clk 0:00:35.4]} 19... Rac8 {[%clk 0:01:01.2]} 20. a3 {[%clk 0:00:32.5]} 20...
b4 {[%clk 0:00:58.4]} 21. Nc4 {[%clk 0:00:20]} 21... Bxc5 {[%clk 0:00:19.7]} 22.
Ng5+ {[%clk 0:00:19.3]} 22... Kg8 {[%clk 0:00:13.1]} 23. Nxe6 {[%clk 0:00:19.9]}
23... bxa3 {[%clk 0:00:10.6]} 24. Bxa3 {[%clk 0:00:17.1]} 24... Bxa3 {[%clk
0:00:09.8]} 25. Nxa3 {[%clk 0:00:18]} 25... Rd6 {[%clk 0:00:07.6]} 26. Nc4
{[%clk 0:00:16.2]} 26... Rd7 {[%clk 0:00:05.2]} 27. Bxf5 {[%clk 0:00:16]} 27...
Nce7 {[%clk 0:00:04.7]} 28. Bh3 {[%clk 0:00:14.9]} 28... Rb7 {[%clk 0:00:04]}
29. Nd4 {[%clk 0:00:15.1]} 29... Rb4 {[%clk 0:00:03.4]} 30. Bxc8 {[%clk
0:00:14.3]} 30... Nxc8 {[%clk 0:00:04.3]} 31. Re8+ {[%clk 0:00:13.7]} 31... Kf7
{[%clk 0:00:04.9]} 32. Rxc8 {[%clk 0:00:14.6]} 32... a5 {[%clk 0:00:05.4]} 33.
Nd6+ {[%clk 0:00:14.8]} 33... Kf6 {[%clk 0:00:05.1]} 34. Nc4 {[%clk 0:00:15.3]}
34... a4 {[%clk 0:00:05.2]} 35. bxa4 {[%clk 0:00:16.1]} 35... Rxa4 {[%clk
0:00:05.9]} 36. Rc6+ {[%clk 0:00:16.1]} 36... Kg5 {[%clk 0:00:05.6]} 37. g3
{[%clk 0:00:17]} 37... Ra2 {[%clk 0:00:05.4]} 38. h4+ {[%clk 0:00:17.9]} 38...
Kg4 {[%clk 0:00:05.6]} 39. Kg2 {[%clk 0:00:17.7]} 39... h6 {[%clk 0:00:06]} 40.
Ne5+ {[%clk 0:00:17.6]} 40... Kh5 {[%clk 0:00:05.9]} 41. g4+ {[%clk 0:00:16.1]}
41... Kxh4 {[%clk 0:00:06.2]} 42. Ndf3# {[%clk 0:00:17]} 1-0

[Event "*** SCC Grand Prix: Titled Tuesday Blitz"]
[Site "Chess.com"]
[Date "2020.06.23"]
[Round "3"]
[White "Eltaj_Safarli"]
[Black "GMTalks_Youtube"]
[Result "1-0"]
[WhiteElo "2960"]
[BlackElo "2685"]
[TimeControl "180+1"]
[EndTime "10:29:14 PDT"]
[Termination "Eltaj_Safarli won by resignation"]

1. e4 {[%clk 0:03:00.9]} 1... e5 {[%clk 0:02:59.2]} 2. Nf3 {[%clk 0:03:00.4]}
2... Nc6 {[%clk 0:02:59.7]} 3. Nc3 {[%clk 0:03:00.5]} 3... Nf6 {[%clk
0:02:59.1]} 4. a3 {[%clk 0:03:01.1]} 4... d5 {[%clk 0:02:58]} 5. Bb5 {[%clk
0:03:00.4]} 5... Nxe4 {[%clk 0:02:56.4]} 6. Qe2 {[%clk 0:02:57.9]} 6... Qd6
{[%clk 0:02:30]} 7. Nxe4 {[%clk 0:02:56.2]} 7... dxe4 {[%clk 0:02:28]} 8. Qxe4
{[%clk 0:02:57.1]} 8... Bd7 {[%clk 0:02:25.7]} 9. d4 {[%clk 0:02:55.7]} 9...
O-O-O {[%clk 0:02:14.5]} 10. dxe5 {[%clk 0:02:55]} 10... Nxe5 {[%clk 0:02:05.9]}
11. Bxd7+ {[%clk 0:02:55.9]} 11... Nxd7 {[%clk 0:02:02.4]} 12. O-O {[%clk
0:02:51.2]} 12... Nc5 {[%clk 0:01:50.5]} 13. Qf5+ {[%clk 0:02:39.6]} 13... Qd7
{[%clk 0:01:42.9]} 14. Qxd7+ {[%clk 0:02:32.5]} 14... Rxd7 {[%clk 0:01:42.8]}
15. Be3 {[%clk 0:02:31.3]} 15... f6 {[%clk 0:01:38.6]} 16. Rad1 {[%clk
0:02:31.1]} 16... Rxd1 {[%clk 0:01:38]} 17. Rxd1 {[%clk 0:02:32]} 17... Ne6
{[%clk 0:01:28.4]} 18. Re1 {[%clk 0:02:21.3]} 18... Kd7 {[%clk 0:01:26.2]} 19.
b4 {[%clk 0:02:18]} 19... a6 {[%clk 0:01:25.5]} 20. c4 {[%clk 0:02:18.3]} 20...
b6 {[%clk 0:01:25.1]} 21. Rd1+ {[%clk 0:02:13.8]} 21... Kc8 {[%clk 0:01:22.9]}
22. g3 {[%clk 0:02:09.1]} 22... Be7 {[%clk 0:01:22.2]} 23. Re1 {[%clk
0:02:08.7]} 23... Kd7 {[%clk 0:01:22]} 24. Nd2 {[%clk 0:02:02.9]} 24... Re8
{[%clk 0:01:16.2]} 25. Ne4 {[%clk 0:02:01.7]} 25... Bf8 {[%clk 0:01:10.6]} 26.
Nc3 {[%clk 0:01:57.7]} 26... Kc8 {[%clk 0:01:06.2]} 27. Nd5 {[%clk 0:01:56.2]}
27... Nd8 {[%clk 0:00:40.7]} 28. Rd1 {[%clk 0:01:47.2]} 28... Nb7 {[%clk
0:00:36.9]} 29. g4 {[%clk 0:01:43.8]} 29... Bd6 {[%clk 0:00:35.5]} 30. f3 {[%clk
0:01:35.1]} 30... a5 {[%clk 0:00:30.9]} 31. h4 {[%clk 0:01:34]} 31... axb4
{[%clk 0:00:29.3]} 32. axb4 {[%clk 0:01:34.9]} 32... Bxb4 {[%clk 0:00:27.3]} 33.
Bxb6 {[%clk 0:01:23.4]} 33... Bc5+ {[%clk 0:00:19.2]} 34. Bxc5 {[%clk
0:01:23.2]} 34... Nxc5 {[%clk 0:00:20.1]} 35. Kf2 {[%clk 0:01:22.3]} 35... c6
{[%clk 0:00:20.4]} 36. Nf4 {[%clk 0:01:21.3]} 36... Re7 {[%clk 0:00:17.9]} 37.
Ra1 {[%clk 0:01:17]} 37... Kb7 {[%clk 0:00:17.7]} 38. h5 {[%clk 0:01:17.1]}
38... h6 {[%clk 0:00:17.1]} 39. Rb1+ {[%clk 0:01:15.6]} 39... Kc7 {[%clk
0:00:16.9]} 40. Ra1 {[%clk 0:01:16.2]} 40... Kb7 {[%clk 0:00:17.1]} 41. Ra3
{[%clk 0:01:15.4]} 41... Rd7 {[%clk 0:00:16.7]} 42. Re3 {[%clk 0:01:11.5]} 42...
Kb6 {[%clk 0:00:17]} 43. Kg3 {[%clk 0:01:09.2]} 43... Ka5 {[%clk 0:00:17.1]} 44.
Re8 {[%clk 0:00:44]} 44... Rc7 {[%clk 0:00:16.3]} 45. Rb8 {[%clk 0:00:41]} 45...
Ka4 {[%clk 0:00:10.2]} 46. Ne2 {[%clk 0:00:39.8]} 46... Ka5 {[%clk 0:00:10.1]}
47. Nd4 {[%clk 0:00:39.7]} 47... Ka6 {[%clk 0:00:09.6]} 48. Kf4 {[%clk
0:00:39.3]} 48... Ka7 {[%clk 0:00:09.3]} 49. Rb1 {[%clk 0:00:39.8]} 49... Ka6
{[%clk 0:00:09]} 50. Kf5 {[%clk 0:00:39.6]} 50... Ka7 {[%clk 0:00:08.7]} 51. Ne6
{[%clk 0:00:38.3]} 51... Nxe6 {[%clk 0:00:07.2]} 52. Kxe6 {[%clk 0:00:39.2]}
52... Rb7 {[%clk 0:00:05.8]} 53. Rxb7+ {[%clk 0:00:37.3]} 53... Kxb7 {[%clk
0:00:06.7]} 54. c5 {[%clk 0:00:37.5]} 54... Ka6 {[%clk 0:00:06.5]} 55. Kd7
{[%clk 0:00:37.6]} 1-0

[Event "*** SCC Grand Prix: Titled Tuesday Blitz"]
[Site "Chess.com"]
[Date "2020.06.23"]
[Round "3"]
[White "QuintilianoR"]
[Black "BogdanDeac"]
[Result "1-0"]
[WhiteElo "2633"]
[BlackElo "2818"]
[TimeControl "180+1"]
[EndTime "10:29:15 PDT"]
[Termination "QuintilianoR won on time"]

1. Nf3 {[%clk 0:03:00.9]} 1... d5 {[%clk 0:02:59.3]} 2. e3 {[%clk 0:03:00.6]}
2... g6 {[%clk 0:02:58.8]} 3. c4 {[%clk 0:03:00.5]} 3... e6 {[%clk 0:02:58.5]}
4. Nc3 {[%clk 0:03:00.6]} 4... Bg7 {[%clk 0:02:58.2]} 5. d4 {[%clk 0:03:00.6]}
5... Ne7 {[%clk 0:02:57.5]} 6. Be2 {[%clk 0:02:58.3]} 6... O-O {[%clk
0:02:56.8]} 7. O-O {[%clk 0:02:58.7]} 7... b6 {[%clk 0:02:56.9]} 8. b3 {[%clk
0:02:57.8]} 8... dxc4 {[%clk 0:02:50.8]} 9. Bxc4 {[%clk 0:02:52.6]} 9... c5
{[%clk 0:02:50.2]} 10. Bb2 {[%clk 0:02:52.5]} 10... cxd4 {[%clk 0:02:48.3]} 11.
Nxd4 {[%clk 0:02:51.5]} 11... Nbc6 {[%clk 0:02:41.4]} 12. Nxc6 {[%clk
0:02:50.6]} 12... Nxc6 {[%clk 0:02:41.9]} 13. Qe2 {[%clk 0:02:47.9]} 13... Bb7
{[%clk 0:02:22.3]} 14. Rfd1 {[%clk 0:02:31.4]} 14... Qe7 {[%clk 0:02:21.2]} 15.
Ba6 {[%clk 0:02:21.8]} 15... Bxa6 {[%clk 0:02:08.1]} 16. Qxa6 {[%clk 0:02:19.8]}
16... Rac8 {[%clk 0:02:07.9]} 17. Rac1 {[%clk 0:02:13.6]} 17... Nb4 {[%clk
0:02:06.2]} 18. Qe2 {[%clk 0:02:06.6]} 18... Rfd8 {[%clk 0:02:03.9]} 19. Rxd8+
{[%clk 0:01:35.6]} 19... Rxd8 {[%clk 0:02:02.6]} 20. Rd1 {[%clk 0:01:16]} 20...
Rxd1+ {[%clk 0:01:55.1]} 21. Nxd1 {[%clk 0:01:15]} 21... Bxb2 {[%clk 0:01:42]}
22. Qxb2 {[%clk 0:01:14.6]} 22... Qd6 {[%clk 0:01:41.6]} 23. Nc3 {[%clk
0:01:12.6]} 23... Qd3 {[%clk 0:01:40.6]} 24. h3 {[%clk 0:01:05.9]} 24... Nc2
{[%clk 0:01:29.7]} 25. Kh2 {[%clk 0:00:40.7]} 25... h5 {[%clk 0:01:17.1]} 26.
Na4 {[%clk 0:00:25.9]} 26... Ne1 {[%clk 0:01:09.1]} 27. Kg1 {[%clk 0:00:10.1]}
27... Qe4 {[%clk 0:00:50.8]} 28. Kf1 {[%clk 0:00:10.2]} 28... Nxg2 {[%clk
0:00:47.6]} 29. Nc3 {[%clk 0:00:10.2]} 29... Qf3 {[%clk 0:00:47]} 30. Qd2 {[%clk
0:00:09.3]} 30... Qxh3 {[%clk 0:00:40.8]} 31. Qd8+ {[%clk 0:00:09.2]} 31... Kh7
{[%clk 0:00:27.6]} 32. Qf6 {[%clk 0:00:08.9]} 32... Nh4+ {[%clk 0:00:05.6]} 33.
Ke1 {[%clk 0:00:09.1]} 33... Kg8 {[%clk 0:00:03.3]} 34. Qd8+ {[%clk 0:00:08.5]}
34... Kg7 {[%clk 0:00:03.5]} 35. Qd4+ {[%clk 0:00:08.5]} 35... f6 {[%clk
0:00:03.6]} 36. Qd7+ {[%clk 0:00:08.5]} 36... Kh6 {[%clk 0:00:03.7]} 37. Qf7
{[%clk 0:00:07.9]} 37... Qh1+ {[%clk 0:00:03.5]} 38. Kd2 {[%clk 0:00:07.7]}
38... Qf3 {[%clk 0:00:03.7]} 39. Qf8+ {[%clk 0:00:07.6]} 39... Kg5 {[%clk
0:00:03.8]} 40. Kc1 {[%clk 0:00:07.7]} 40... Nf5 {[%clk 0:00:02.4]} 41. Qb4
{[%clk 0:00:06.8]} 41... Kh6 {[%clk 0:00:01.4]} 42. Ne4 {[%clk 0:00:06.8]} 1-0

[Event "*** SCC Grand Prix: Titled Tuesday Blitz"]
[Site "Chess.com"]
[Date "2020.06.23"]
[Round "3"]
[White "GeorgMeier"]
[Black "Ginger_GM"]
[Result "1-0"]
[WhiteElo "2909"]
[BlackElo "2662"]
[TimeControl "180+1"]
[EndTime "10:29:16 PDT"]
[Termination "GeorgMeier won by resignation"]

1. Nf3 {[%clk 0:02:59.8]} 1... f5 {[%clk 0:02:59.3]} 2. d4 {[%clk 0:02:57.2]}
2... e6 {[%clk 0:02:59]} 3. c4 {[%clk 0:02:46.4]} 3... Nf6 {[%clk 0:02:58]} 4.
Nc3 {[%clk 0:02:44.7]} 4... Be7 {[%clk 0:02:55.6]} 5. Bf4 {[%clk 0:02:37.9]}
5... b6 {[%clk 0:02:54.7]} 6. d5 {[%clk 0:02:36.6]} 6... Ne4 {[%clk 0:02:45.4]}
7. Nxe4 {[%clk 0:02:21.3]} 7... fxe4 {[%clk 0:02:45.4]} 8. Nd2 {[%clk
0:02:21.9]} 8... O-O {[%clk 0:02:28.6]} 9. e3 {[%clk 0:02:21.8]} 9... Bb7 {[%clk
0:02:13.5]} 10. Nxe4 {[%clk 0:02:20.7]} 10... Bb4+ {[%clk 0:02:09.8]} 11. Nc3
{[%clk 0:02:18.7]} 11... Qf6 {[%clk 0:01:57.5]} 12. Rc1 {[%clk 0:01:33.8]} 12...
Na6 {[%clk 0:01:01.7]} 13. Bd3 {[%clk 0:01:11.5]} 13... Nc5 {[%clk 0:00:42.7]}
14. O-O {[%clk 0:01:05.3]} 14... Bxc3 {[%clk 0:00:40.7]} 15. Rxc3 {[%clk
0:01:03.8]} 15... exd5 {[%clk 0:00:40.9]} 16. cxd5 {[%clk 0:01:03.7]} 16... Bxd5
{[%clk 0:00:32.5]} 17. Bxh7+ {[%clk 0:01:03.1]} 17... Kxh7 {[%clk 0:00:31.9]}
18. Qh5+ {[%clk 0:01:00.7]} 18... Kg8 {[%clk 0:00:27]} 19. Qxd5+ {[%clk
0:01:00.6]} 19... Ne6 {[%clk 0:00:25.1]} 20. Rxc7 {[%clk 0:00:46.2]} 20... Kh7
{[%clk 0:00:18.4]} 21. Rxd7 {[%clk 0:00:37.7]} 21... Nxf4 {[%clk 0:00:18.3]} 22.
exf4 {[%clk 0:00:37.6]} 22... Qxf4 {[%clk 0:00:18.5]} 23. g3 {[%clk 0:00:37.3]}
23... Qf5 {[%clk 0:00:17.6]} 24. Qxf5+ {[%clk 0:00:34.2]} 24... Rxf5 {[%clk
0:00:18.5]} 25. Re1 {[%clk 0:00:34.6]} 25... Raf8 {[%clk 0:00:17.2]} 26. f4
{[%clk 0:00:34.5]} 26... Kh6 {[%clk 0:00:16.7]} 27. Re6+ {[%clk 0:00:34]} 27...
g6 {[%clk 0:00:15]} 28. Rdd6 {[%clk 0:00:33.7]} 28... Rg8 {[%clk 0:00:15]} 29.
Kg2 {[%clk 0:00:30.7]} 29... Rc5 {[%clk 0:00:14.8]} 30. Re2 {[%clk 0:00:30]}
30... b5 {[%clk 0:00:13.8]} 31. Ra6 {[%clk 0:00:27]} 31... Rg7 {[%clk
0:00:11.9]} 32. h4 {[%clk 0:00:25.4]} 32... Kh5 {[%clk 0:00:12]} 33. Kh3 {[%clk
0:00:25.5]} 33... Kh6 {[%clk 0:00:10.8]} 34. Rf2 {[%clk 0:00:23.1]} 34... Rd7
{[%clk 0:00:08.8]} 35. f5 {[%clk 0:00:22]} 35... Rd1 {[%clk 0:00:04.7]} 36.
Rxg6+ {[%clk 0:00:21.6]} 36... Kh7 {[%clk 0:00:05.2]} 37. Kg4 {[%clk 0:00:19.8]}
37... Rd4+ {[%clk 0:00:04]} 38. Kh5 {[%clk 0:00:18.4]} 38... Rd3 {[%clk
0:00:04.6]} 39. g4 {[%clk 0:00:18.3]} 39... Rd4 {[%clk 0:00:04.2]} 40. Re2
{[%clk 0:00:17.6]} 40... Rd7 {[%clk 0:00:04]} 41. Kg5 {[%clk 0:00:17.1]} 41...
a5 {[%clk 0:00:04]} 42. h5 {[%clk 0:00:15.1]} 42... a4 {[%clk 0:00:04.3]} 43. a3
{[%clk 0:00:14.6]} 43... b4 {[%clk 0:00:04.5]} 44. axb4 {[%clk 0:00:14.4]} 44...
Rb5 {[%clk 0:00:05.4]} 45. Re4 {[%clk 0:00:13.4]} 45... Rdb7 {[%clk 0:00:05.3]}
46. h6 {[%clk 0:00:12.9]} 46... R5b6 {[%clk 0:00:04.6]} 47. Rxb6 {[%clk
0:00:11.2]} 1-0

[Event "*** SCC Grand Prix: Titled Tuesday Blitz"]
[Site "Chess.com"]
[Date "2020.06.23"]
[Round "3"]
[White "Chessy222222"]
[Black "ErikRonka"]
[Result "0-1"]
[WhiteElo "2124"]
[BlackElo "2401"]
[TimeControl "180+1"]
[EndTime "10:29:16 PDT"]
[Termination "ErikRonka won by checkmate"]

1. e4 {[%clk 0:02:59.6]} 1... c6 {[%clk 0:02:59.2]} 2. d4 {[%clk 0:02:58.9]}
2... d5 {[%clk 0:03:00.1]} 3. exd5 {[%clk 0:02:58.9]} 3... cxd5 {[%clk 0:03:01]}
4. Bd3 {[%clk 0:02:59.3]} 4... Nf6 {[%clk 0:02:59.1]} 5. c3 {[%clk 0:02:59.4]}
5... Nc6 {[%clk 0:02:59.6]} 6. Bf4 {[%clk 0:02:59.5]} 6... Bg4 {[%clk
0:02:59.4]} 7. Qb3 {[%clk 0:02:59.7]} 7... Qc8 {[%clk 0:02:59.3]} 8. Nd2 {[%clk
0:02:59.9]} 8... Bh5 {[%clk 0:02:59.3]} 9. Ngf3 {[%clk 0:02:59.6]} 9... Bg6
{[%clk 0:02:59.1]} 10. Bxg6 {[%clk 0:02:57.6]} 10... hxg6 {[%clk 0:03:00]} 11.
O-O {[%clk 0:02:57.3]} 11... e6 {[%clk 0:03:00]} 12. Rfe1 {[%clk 0:02:57.1]}
12... Be7 {[%clk 0:02:57.8]} 13. Ne5 {[%clk 0:02:56.8]} 13... Nxe5 {[%clk
0:02:56.8]} 14. Bxe5 {[%clk 0:02:56.6]} 14... Qc6 {[%clk 0:02:55.2]} 15. a4
{[%clk 0:02:54.9]} 15... Bd6 {[%clk 0:02:26.5]} 16. Bxd6 {[%clk 0:02:50.7]}
16... Qxd6 {[%clk 0:02:25.9]} 17. Nf3 {[%clk 0:02:50.7]} 17... Qc7 {[%clk
0:02:12]} 18. Qb5+ {[%clk 0:02:45]} 18... Kf8 {[%clk 0:02:07.1]} 19. Ne5 {[%clk
0:02:43.7]} 19... Kg8 {[%clk 0:01:54.9]} 20. Re3 {[%clk 0:02:38.5]} 20... Ne4
{[%clk 0:01:33.4]} 21. f3 {[%clk 0:02:10.2]} 21... Nd6 {[%clk 0:01:30.8]} 22.
Qe2 {[%clk 0:02:04.7]} 22... Nf5 {[%clk 0:01:29.1]} 23. Rd3 {[%clk 0:01:09.8]}
23... Rc8 {[%clk 0:01:01.3]} 24. Re1 {[%clk 0:01:08]} 24... a6 {[%clk
0:01:01.2]} 25. g3 {[%clk 0:00:55]} 25... Nd6 {[%clk 0:01:00.6]} 26. Kg2 {[%clk
0:00:31.2]} 26... Nc4 {[%clk 0:01:00.5]} 27. Nxc4 {[%clk 0:00:27.2]} 27... Qxc4
{[%clk 0:01:01.4]} 28. Qc2 {[%clk 0:00:24.1]} 28... b5 {[%clk 0:00:58.3]} 29. b3
{[%clk 0:00:23.5]} 29... Qc6 {[%clk 0:00:53.7]} 30. axb5 {[%clk 0:00:22.8]}
30... axb5 {[%clk 0:00:53.7]} 31. Ra1 {[%clk 0:00:21.8]} 31... Kh7 {[%clk
0:00:53.7]} 32. Re3 {[%clk 0:00:20.2]} 32... b4 {[%clk 0:00:50.6]} 33. Rc1
{[%clk 0:00:16.6]} 33... Qb6 {[%clk 0:00:44]} 34. Qd3 {[%clk 0:00:13.7]} 34...
bxc3 {[%clk 0:00:40.9]} 35. Rxc3 {[%clk 0:00:13.5]} 35... Rxc3 {[%clk
0:00:40.6]} 36. Qxc3 {[%clk 0:00:14.4]} 36... Rb8 {[%clk 0:00:40.8]} 37. h4
{[%clk 0:00:13]} 37... Kg8 {[%clk 0:00:39.4]} 38. Kh3 {[%clk 0:00:11.8]} 38...
Qb5 {[%clk 0:00:38.8]} 39. Rd3 {[%clk 0:00:11]} 39... Rb6 {[%clk 0:00:34.7]} 40.
Qc5 {[%clk 0:00:09.8]} 40... Qxd3 {[%clk 0:00:29]} 41. Qxb6 {[%clk 0:00:09.6]}
41... Qxf3 {[%clk 0:00:28.8]} 42. Qd8+ {[%clk 0:00:08.5]} 42... Kh7 {[%clk
0:00:28.7]} 43. Qf8 {[%clk 0:00:08.7]} 43... Qh1+ {[%clk 0:00:24.2]} 44. Kg4
{[%clk 0:00:09.2]} 44... f5+ {[%clk 0:00:20.8]} 45. Kf4 {[%clk 0:00:09.7]} 45...
Qe4+ {[%clk 0:00:20.2]} 46. Kg5 {[%clk 0:00:09.4]} 46... Qg4# {[%clk 0:00:20.3]}
0-1